bitfinex/quotes_SOLUSD_20241110
["timestamp","ask_amount","ask_price","bid_price","bid_amount"]
[1731246102955,20.95394236,205.99,205.96,0.09120724]
[1731246103172,20.95394236,205.99,205.94,0.1]
[1731246103173,20.95394236,205.99,205.94,0.19120724]
[1731246104063,20.95394236,205.99,205.98,0.19120724]
[1731246104371,8.81744236,205.99,205.98,0.19120724]
[1731246104765,8.81744236,205.99,205.98,0.09120724]
[1731246105754,8.81744236,205.99,205.98,0.19120724]
[1731246107079,8.81744236,205.99,205.98,0.09120724]
[1731246108762,28.81744236,205.99,205.98,0.09120724]
[1731246112473,28.81744236,205.99,205.98,0.19120724]
[1731246112866,28.81744236,205.99,205.98,0.09120724]
[1731246116265,28.81744236,205.99,205.98,0.19120724]
[1731246116980,3.8546,205.99,205.98,0.19120724]
[1731246117186,0.06,206.0,205.99,16.414]
[1731246117361,19.9242,206.06,206.05,0.09120724]
[1731246117563,4.8529,206.06,206.05,0.19120724]
[1731246117782,4.8529,206.06,205.99,16.414]
[1731246117783,24.88614236,206.1,206.09,0.09120724]
[1731246118084,9.81484236,206.1,206.07,0.09120724]
[1731246118289,26.32884236,206.1,206.07,0.09120724]
[1731246118461,5.95525785,206.09,206.07,0.09120724]
[1731246118659,4.96284236,206.08,206.07,0.09120724]
[1731246118863,9.81524236,206.08,206.07,0.09120724]
[1731246119065,15.77050021,206.08,206.07,0.09120724]
[1731246119483,35.77050021,206.08,206.07,0.09120724]
[1731246120885,35.77050021,206.08,206.04,0.1]
[1731246121076,20.0,206.07,206.01,0.09120724]
[1731246121380,20.0,206.03,206.01,0.09120724]
[1731246121592,4.96284236,206.02,206.01,0.09120724]
[1731246122983,9.81664236,206.02,206.01,0.09120724]
[1731246123285,29.81664236,206.02,206.01,0.09120724]
[1731246124495,6.13737419,206.06,206.05,0.09120724]
[1731246124798,10.99027419,206.06,206.05,0.19120724]
[1731246125291,4.8529,206.06,206.05,0.19120724]
[1731246126983,4.8529,206.06,206.05,0.09120724]
[1731246127186,20.0,206.05,206.03,16.60520724]
[1731246128288,4.8534,206.04,206.03,16.60520724]
[1731246129074,17.09404236,206.08,206.03,16.60520724]
[1731246129075,9.81524236,206.08,206.07,0.1]
[1731246130093,4.8524,206.08,206.07,0.19120724]
[1731246130293,4.3524,206.08,206.07,0.19120724]
[1731246131390,10.98907419,206.11,206.1,0.09120724]
[1731246131594,30.98907419,206.11,206.1,0.09120724]
[1731246132292,30.98907419,206.11,206.06,0.09120724]
[1731246132293,20.0,206.1,206.06,0.09120724]
[1731246132492,25.95525785,206.1,206.09,0.09120724]
[1731246133703,4.8522,206.09,206.07,0.19120724]
[1731246133874,4.8522,206.09,206.07,0.09120724]
[1731246134996,4.8522,206.09,206.07,0.19120724]
[1731246135290,4.8522,206.09,206.07,0.09120724]
[1731246135689,20.0,206.08,206.03,16.60520724]
[1731246135978,30.84587799,206.08,206.03,16.60520724]
[1731246136590,30.84587799,206.08,206.03,16.50520724]
[1731246136993,20.0,206.05,206.01,0.09120724]
[1731246137200,4.89062014,206.04,206.01,0.19120724]
[1731246137683,4.89062014,206.04,206.01,0.09120724]
[1731246138480,24.8536,206.03,206.01,0.09120724]
[1731246139076,20.0,206.02,206.01,0.09120724]
[1731246139276,24.89062014,206.02,206.01,0.09120724]
[1731246141683,4.8541,206.01,205.98,0.09120724]
[1731246141977,30.84587799,206.0,205.96,6.57680724]
[1731246142178,30.84587799,206.0,205.96,0.09120724]
[1731246143596,24.8546,205.99,205.96,0.09120724]
[1731246143793,29.74522014,205.99,205.96,0.09120724]
[1731246144903,29.74522014,205.99,205.96,0.19120724]
[1731246145490,29.74522014,205.99,205.96,0.09120724]
[1731246145687,29.74522014,205.99,205.96,0.19120724]
[1731246145892,35.70047799,205.99,205.96,0.19120724]
[1731246146105,35.70047799,205.99,205.96,0.09120724]
[1731246146291,35.70047799,205.99,205.96,0.19120724]
[1731246146488,35.70047799,205.99,205.96,0.09120724]
[1731246147102,35.70047799,205.99,205.96,0.19120724]
[1731246147500,35.70047799,205.99,205.96,0.09120724]
[1731246147685,35.70047799,205.99,205.96,0.19120724]
[1731246147887,35.70047799,205.99,205.96,0.09120724]
[1731246148089,35.70047799,205.99,205.96,0.19120724]
[1731246148387,24.8546,205.99,205.98,0.19120724]
[1731246149505,24.8546,205.99,205.98,0.09120724]
[1731246149708,24.8546,205.99,205.98,0.19120724]
[1731246151089,24.8546,205.99,205.98,0.09120724]
[1731246151413,24.8546,205.99,205.98,0.19120724]
[1731246154489,9.74522014,205.99,205.96,0.19120724]
[1731246154811,20.0,205.98,205.96,0.09120724]
[1731246155615,24.855,205.97,205.96,0.09120724]
[1731246156303,29.74562014,205.97,205.96,0.09120724]
[1731246156812,24.89062014,205.97,205.96,0.09120724]
[1731246157110,24.89062014,205.97,205.94,0.09120724]
[1731246157327,4.89062014,205.96,205.94,0.09120724]
[1731246157602,24.8555,205.95,205.94,0.19120724]
[1731246158504,4.8555,205.95,205.94,0.19120724]
[1731246160290,4.8555,205.95,205.94,0.09120724]
[1731246161007,29.74612014,205.95,205.94,0.09120724]
[1731246163106,20.0,205.92,205.88,0.19120724]
[1731246163412,35.69456723,205.92,205.88,0.19120724]
[1731246163812,35.69456723,205.92,205.91,0.09120724]
[1731246164187,29.74682014,205.92,205.91,0.09120724]
[1731246164388,24.8562,205.92,205.91,0.09120724]
[1731246166094,4.8562,205.92,205.89,0.09120724]
[1731246166295,25.94774709,205.91,205.9,0.09120724]
[1731246169407,30.80414709,205.91,205.9,0.09120724]
[1731246171220,30.80414709,205.91,205.9,0.19120724]
[1731246171414,24.8564,205.91,205.9,0.19120724]
[1731246173223,4.8564,205.91,205.9,0.19120724]
[1731246173419,5.94774709,205.96,205.94,0.09120724]
[1731246173604,4.8555,205.95,205.94,0.19120724]
[1731246174018,21.1891,205.98,205.97,0.19120724]
[1731246175509,41.1891,205.98,205.97,0.19120724]
[1731246176234,4.8544,206.0,205.97,0.19120724]
[1731246176418,4.8534,206.04,205.99,0.19120724]
[1731246176623,15.5477,206.03,206.02,0.19120724]
[1731246176822,4.8534,206.04,206.02,0.19120724]
[1731246177023,20.4011,206.04,206.02,0.19120724]
[1731246177912,4.8534,206.04,206.02,0.19120724]
[1731246179326,4.8534,206.04,206.02,0.09120724]
[1731246180026,20.0,206.02,206.0,0.09120724]
[1731246180721,23.776884,206.01,205.98,0.09120724]
[1731246180928,20.0,206.0,205.99,0.09120724]
[1731246183533,4.8534,206.04,206.03,0.09120724]
[1731246184239,24.8534,206.04,206.03,0.09120724]
[1731246184530,4.8534,206.04,206.03,0.09120724]
[1731246185035,6.02748007,206.04,206.03,0.09120724]
[1731246185238,4.8533,206.05,206.04,0.1]
[1731246185742,15.5477,206.06,206.05,0.09120724]
[1731246185924,4.8527,206.07,206.06,0.1]
[1731246186926,32.5281,206.12,206.11,0.09120724]
[1731246187633,52.5281,206.12,206.11,0.09120724]
[1731246188722,20.3992,206.12,206.11,0.09120724]
[1731246189021,4.8515,206.12,206.11,0.09120724]
[1731246189337,4.8515,206.12,206.11,15.11920724]
[1731246190025,1.939177,206.15,206.11,15.11920724]
[1731246190335,4.851,206.14,206.13,0.1]
[1731246190839,4.851,206.14,206.13,0.19120724]
[1731246192242,4.851,206.14,206.13,0.09120724]
[1731246192749,4.851,206.14,206.13,0.19120724]
[1731246194437,4.851,206.14,206.11,15.21920724]
[1731246194635,20.0,206.13,206.11,15.21920724]
[1731246195141,20.0,206.11,206.09,0.19120724]
[1731246195344,24.89062014,206.11,206.09,0.19120724]
[1731246196339,4.852,206.1,206.09,0.19120724]
[1731246197736,9.74262014,206.1,206.09,0.19120724]
[1731246198037,29.74262014,206.1,206.09,0.19120724]
[1731246203930,29.74262014,206.1,206.07,0.09120724]
[1731246204131,24.89062014,206.09,206.07,0.09120724]
[1731246204846,4.8524,206.08,206.07,0.09120724]
[1731246205031,9.74302014,206.08,206.07,0.09120724]
[1731246205240,29.74302014,206.08,206.07,0.09120724]
[1731246206861,43.776884,206.07,206.06,0.09120724]
[1731246207151,48.90574568,206.07,206.06,0.09120724]
[1731246207944,25.12886168,206.07,206.06,0.19120724]
[1731246208145,5.12886168,206.07,206.06,0.19120724]
[1731246209840,25.12886168,206.07,206.06,0.19120724]
[1731246213642,25.12886168,206.07,206.01,15.028]
[1731246213643,48.90574568,206.07,206.04,0.09120724]
[1731246213957,35.78709864,206.06,206.04,0.09120724]
[1731246214136,43.776884,206.05,206.02,0.09120724]
[1731246214335,30.93419864,206.04,206.02,0.09120724]
[1731246214743,4.8536,206.03,206.02,0.09120724]
[1731246214932,9.98246168,206.03,206.02,0.09120724]
[1731246215138,29.98246168,206.03,206.02,0.09120724]
[1731246215956,20.0,206.02,206.0,0.09120724]
[1731246216155,23.776884,205.99,205.98,0.09120724]
[1731246216362,48.90574568,205.99,205.98,0.19120724]
[1731246217062,48.90574568,205.99,205.98,0.09120724]
[1731246217244,20.0,205.98,205.96,0.09120724]
[1731246217446,20.0,205.96,205.94,0.19120724]
[1731246217649,25.12886168,205.95,205.94,0.09120724]
[1731246218044,29.98436168,205.95,205.94,0.19120724]
[1731246219354,43.776884,205.93,205.92,0.09120724]
[1731246219559,48.90574568,205.93,205.92,0.09120724]
[1731246219754,20.0,205.92,205.9,0.09120724]
[1731246219960,5.12886168,205.91,205.89,0.1]
[1731246220255,24.8567,205.9,205.88,0.09120724]
[1731246220458,25.12886168,205.89,205.88,0.09120724]
[1731246220641,20.0,205.88,205.86,0.09120724]
[1731246220840,5.12886168,205.87,205.86,0.09120724]
[1731246221371,25.12886168,205.87,205.86,0.09120724]
[1731246222260,29.98626168,205.87,205.86,0.09120724]
[1731246222454,29.98626168,205.87,205.86,0.19120724]
[1731246223645,29.98626168,205.87,205.86,0.09120724]
[1731246224347,29.98626168,205.87,205.86,0.19120724]
[1731246224551,29.98626168,205.87,205.86,0.09120724]
[1731246225144,23.776884,205.85,205.82,0.1]
[1731246225344,26.13467029,205.84,205.83,0.09120724]
[1731246225565,55.04041597,205.84,205.83,0.19120724]
[1731246226344,59.89851597,205.84,205.83,0.19120724]
[1731246228453,59.89851597,205.84,205.83,0.1]
[1731246228652,59.89851597,205.84,205.81,0.09120724]
[1731246229246,20.0,205.82,205.79,0.19120724]
[1731246229447,48.90574568,205.82,205.81,0.09120724]
[1731246229664,55.04041597,205.82,205.81,0.09120724]
[1731246229862,31.26353197,205.82,205.81,0.19120724]
[1731246230966,36.12213197,205.82,205.81,0.19120724]
[1731246236362,30.99327029,205.82,205.81,0.19120724]
[1731246236953,10.99327029,205.82,205.81,0.19120724]
[1731246237152,4.8586,205.82,205.81,0.19120724]
[1731246237573,10.99247029,205.86,205.81,0.19120724]
[1731246237867,10.99247029,205.86,205.85,0.1]
[1731246238272,10.99247029,205.86,205.85,0.19120724]
[1731246238774,30.99247029,205.86,205.85,0.19120724]
[1731246239152,4.8578,205.86,205.85,0.19120724]
[1731246240046,12.1422,205.9,205.85,0.19120724]
[1731246240349,12.1422,205.9,205.89,0.19120724]
[1731246240551,4.8562,205.92,205.89,0.19120724]
[1731246240856,24.8562,205.92,205.91,0.19120724]
[1731246241470,4.8562,205.92,205.91,0.19120724]
[1731246242470,6.16733349,205.95,205.94,0.09120724]
[1731246242654,6.16733349,205.95,205.94,0.19120724]
[1731246243369,11.29619517,205.95,205.94,0.19120724]
[1731246243673,31.29619517,205.95,205.94,0.19120724]
[1731246244073,5.12886168,205.95,205.94,0.19120724]
[1731246244373,5.12886168,206.0,205.98,0.1]
[1731246244580,5.12886168,206.0,205.99,0.09120724]
[1731246245556,6.16733349,206.01,206.0,0.1]
[1731246245869,11.29619517,206.01,206.0,0.1]
[1731246246175,11.29619517,206.01,205.99,0.09120724]
[1731246246346,23.776884,205.99,205.97,0.09120724]
[1731246246550,43.776884,205.97,205.95,0.09120724]
[1731246246749,5.12886168,205.96,205.95,0.09120724]
[1731246246961,31.29619517,205.96,205.95,0.09120724]
[1731246247149,31.29619517,205.96,205.88,16.4651]
[1731246247150,20.0,205.95,205.92,0.09120724]
[1731246247481,20.0,205.93,205.92,0.09120724]
[1731246247772,25.12886168,205.93,205.92,0.09120724]
[1731246249369,31.05416023,205.93,205.92,0.09120724]
[1731246249674,31.05416023,205.93,205.92,0.19120724]
[1731246249976,31.05416023,205.93,205.92,0.09120724]
[1731246250570,54.83104423,205.93,205.9,0.09120724]
[1731246250756,20.0,205.91,205.9,0.19120724]
[1731246250953,25.12886168,205.91,205.9,0.19120724]
[1731246254274,31.05416023,205.91,205.9,0.19120724]
[1731246254670,31.05416023,205.91,205.9,0.09120724]
[1731246254867,31.05416023,205.91,205.88,0.09120724]
[1731246255174,20.0,205.89,205.88,0.09120724]
[1731246255358,25.12886168,205.89,205.88,0.09120724]
[1731246255566,31.05416023,205.89,205.88,0.09120724]
[1731246255863,31.05416023,205.89,205.86,0.09120724]
[1731246255864,54.83104423,205.89,205.86,0.09120724]
[1731246256057,20.0,205.87,205.86,0.09120724]
[1731246256259,25.12886168,205.87,205.86,0.19120724]
[1731246256474,25.12886168,205.87,205.86,0.08032756]
[1731246256885,25.12886168,205.87,205.83,15.99452756]
[1731246257068,20.0,205.85,205.84,0.08032756]
[1731246257261,25.12886168,205.85,205.84,0.08032756]
[1731246257571,25.12886168,205.85,205.83,15.9142]
[1731246257885,20.0,205.83,205.8,0.08032756]
[1731246258370,5.12886168,205.82,205.8,0.08032756]
[1731246258684,20.0,205.81,205.8,0.08032756]
[1731246259084,5.12886168,205.82,205.8,0.08032756]
[1731246259379,5.04853412,205.87,205.79,0.1]
[1731246262782,5.04853412,205.87,205.8,0.1]
[1731246262976,20.0,205.89,205.81,0.1]
[1731246263681,20.0,205.89,205.8,0.1]
[1731246263874,20.0,205.89,205.81,0.1]
[1731246264065,20.0,205.89,205.8,0.1]
[1731246264269,20.0,205.89,205.82,0.1]
[1731246264480,20.0,205.89,205.81,0.1]
[1731246265067,0.1,205.87,205.8,0.08860704]
[1731246265372,0.1,205.87,205.78,16.00280704]
[1731246266266,20.0,205.89,205.78,16.00280704]
[1731246266465,20.1,205.89,205.78,16.00280704]
[1731246267384,20.0,205.89,205.8,0.08860704]
[1731246267593,20.1,205.91,205.81,16.651]
[1731246267790,20.1,205.91,205.82,6.74950704]
[1731246268701,20.0,205.91,205.82,6.74950704]
[1731246269868,20.0,205.91,205.84,0.08860704]
[1731246270074,5.12306025,205.92,205.84,0.08860704]
[1731246270283,0.1,205.91,205.84,0.08860704]
[1731246270479,5.12306025,205.92,205.84,0.08860704]
[1731246270889,5.12306025,205.92,205.85,16.651]
[1731246271191,6.16733349,205.95,205.85,16.651]
[1731246271574,0.1,205.92,205.85,16.651]
[1731246272084,11.29039374,205.95,205.85,16.651]
[1731246272297,0.1,205.92,205.85,16.651]
[1731246273183,20.0,205.93,205.85,16.651]
[1731246273396,4.8562,205.92,205.85,16.651]
[1731246274177,4.9562,205.92,205.85,16.651]
[1731246275582,4.8562,205.92,205.85,16.651]
[1731246275797,4.9562,205.92,205.85,16.651]
[1731246276266,4.8562,205.92,205.85,16.651]
[1731246276469,4.9562,205.92,205.85,16.651]
[1731246276685,20.0,205.93,205.85,16.651]
[1731246276892,0.1,205.92,205.85,16.651]
[1731246277872,4.8563,205.92,205.85,16.651]
[1731246278078,4.9563,205.92,205.85,16.651]
[1731246278878,4.8563,205.92,205.85,16.651]
[1731246279591,4.9563,205.92,205.85,16.651]
[1731246279994,4.8563,205.92,205.85,16.651]
[1731246281095,24.856,205.93,205.86,0.08860704]
[1731246282087,0.1,205.92,205.87,6.6609]
[1731246282292,20.0,205.93,205.87,6.6609]
[1731246282491,4.9563,205.92,205.87,6.6609]
[1731246282695,24.9563,205.92,205.87,6.6609]
[1731246283076,24.8563,205.92,205.87,6.6609]
[1731246283280,24.9563,205.92,205.87,6.6609]
[1731246283999,24.8563,205.92,205.87,6.6609]
[1731246284181,24.9563,205.92,205.87,6.6609]
[1731246284389,24.8563,205.92,205.87,6.6609]
[1731246285780,24.9563,205.92,205.87,6.6609]
[1731246286883,24.8563,205.92,205.87,6.6609]
[1731246287398,29.97936025,205.92,205.87,6.6609]
[1731246287903,9.97936025,205.92,205.87,6.6609]
[1731246288207,0.1,205.89,205.87,6.6609]
[1731246288392,5.22306025,205.89,205.87,6.6609]
[1731246288895,5.12306025,205.89,205.87,6.6609]
[1731246289284,4.8563,205.92,205.87,6.6609]
[1731246289490,9.97856025,205.95,205.87,6.74950704]
[1731246290882,10.07856025,205.95,205.87,6.74950704]
[1731246291090,9.97856025,205.95,205.87,6.74950704]
[1731246291283,10.07856025,205.95,205.87,6.74950704]
[1731246292499,5.12306025,205.95,205.89,0.08860704]
[1731246293000,4.8548,205.98,205.91,0.08860704]
[1731246293799,0.1,205.97,205.91,0.08860704]
[1731246293996,0.1,205.97,205.88,15.0655]
[1731246293997,0.1,205.97,205.89,0.08860704]
[1731246294413,4.8553,205.96,205.89,0.08860704]
[1731246295111,4.855,205.98,205.91,0.08860704]
[1731246296493,4.855,205.98,205.89,0.08860704]
[1731246296703,9.97806025,205.98,205.89,0.08860704]
[1731246296894,20.0,205.97,205.89,0.08860704]
[1731246297089,20.0,205.97,205.91,0.08860704]
[1731246299008,20.0,205.97,205.92,15.0655]
[1731246299215,9.97806025,205.98,205.93,6.5604]
[1731246299511,5.12306025,205.98,205.93,6.64900704]
[1731246300317,6.16733349,206.0,205.93,6.64900704]
[1731246300913,11.02173349,206.0,205.93,6.64900704]
[1731246301215,4.8544,206.0,205.94,15.0655]
[1731246304695,4.9541,206.01,205.94,15.0655]
[1731246305209,4.8541,206.01,205.94,15.0655]
[1731246305412,4.9541,206.01,205.94,15.0655]
[1731246305612,0.1,205.99,205.94,15.0655]
[1731246305797,0.1,205.94,205.88,21.6259]
[1731246306116,0.1,205.92,205.88,21.6259]
[1731246306302,5.22306025,205.92,205.88,21.6259]
[1731246306611,4.8564,205.91,205.88,21.6259]
[1731246307612,24.8564,205.91,205.88,21.6259]
[1731246307897,9.97946025,205.91,205.88,21.6259]
[1731246308309,20.0,205.9,205.82,6.1197]
[1731246308617,0.1,205.85,205.82,6.1197]
[1731246308822,20.0,205.88,205.82,6.1197]
[1731246308823,20.1,205.88,205.82,6.1197]
[1731246309004,5.12306025,205.9,205.82,6.1197]
[1731246309820,5.12306025,205.9,205.83,0.08860704]
[1731246310495,5.12306025,205.9,205.82,6.1197]
[1731246310496,10.07986025,205.9,205.82,6.1197]
[1731246313115,0.1,205.84,205.82,6.1197]
[1731246313414,0.1,205.86,205.82,6.1197]
[1731246314018,0.1,205.88,205.82,6.1197]
[1731246314710,4.8574,205.87,205.82,6.1197]
[1731246316229,0.1,205.86,205.82,6.1197]
[1731246316520,0.1,205.82,205.8,15.4772]
[1731246316710,4.9586,205.82,205.8,15.4772]
[1731246317417,4.9586,205.82,205.76,6.1197]
[1731246317821,0.1,205.79,205.76,6.1197]
[1731246318128,0.1,205.79,205.66,4.9924493]
[1731246318129,0.1,205.75,205.68,15.4772]
[1731246318619,0.1,205.75,205.68,15.56580704]
[1731246318822,0.1,205.75,205.68,15.4772]
[1731246319529,0.1,205.75,205.68,15.56580704]
[1731246320224,24.9599,205.77,205.68,15.56580704]
[1731246320430,20.1,205.77,205.68,15.56580704]
[1731246321221,24.9598,205.77,205.68,15.4772]
[1731246323209,0.1,205.73,205.68,15.4772]
[1731246324020,0.1,205.69,205.63,15.4772]
[1731246325523,0.1,205.71,205.63,15.4772]
[1731246326121,4.861,205.72,205.63,15.4772]
[1731246326626,4.9614,205.71,205.63,15.4772]
[1731246327414,4.9614,205.71,205.62,0.08860704]
[1731246327613,0.1,205.67,205.56,16.62760704]
[1731246328011,0.1,205.65,205.56,16.62760704]
[1731246328827,4.9627,205.65,205.56,16.62760704]
[1731246329425,4.8627,205.65,205.56,16.62760704]
[1731246329612,4.9627,205.65,205.56,16.62760704]
[1731246329927,0.1,205.63,205.56,16.539]
[1731246330424,20.1,205.63,205.56,16.539]
[1731246330626,4.8638,205.6,205.56,16.539]
[1731246330826,4.8638,205.6,205.51,16.539]
[1731246331019,4.8638,205.6,205.4,147.7376]
[1731246331020,0.1,205.59,205.47,0.08860704]
[1731246331331,24.8638,205.6,205.46,16.539]
[1731246331332,0.1,205.57,205.49,0.08860704]
[1731246332015,0.1,205.57,205.47,0.08860704]
[1731246332941,4.9646,205.57,205.47,0.08860704]
[1731246333229,0.1,205.53,205.46,16.539]
[1731246333612,0.1,205.55,205.46,16.539]
[1731246333913,0.1,205.52,205.46,16.539]
[1731246334914,0.1,205.5,205.43,0.08860704]
[1731246339736,4.9662,205.5,205.4,147.7376]
[1731246339922,0.1,205.47,205.4,147.7376]
[1731246341619,4.967,205.47,205.4,147.7376]
[1731246344233,0.1,205.44,205.4,147.7376]
[1731246345236,4.9676,205.44,205.4,147.7376]
[1731246345435,0.1,205.42,205.4,147.7376]
[1731246347352,4.8683,205.41,205.4,147.7376]
[1731246351355,0.1,205.42,205.4,147.7376]
[1731246352647,4.9681,205.42,205.4,147.7376]
[1731246354152,0.1,205.42,205.4,147.7376]
[1731246355836,43.776884,205.41,205.4,147.7376]
[1731246356041,20.0,205.41,205.4,147.7376]
[1731246356243,43.776884,205.41,205.4,147.7376]
[1731246356437,55.03880651,205.41,205.4,147.7376]
[1731246356640,55.23880651,205.41,205.4,141.5429]
[1731246356832,55.23880651,205.41,205.4,136.8682]
[1731246356833,25.12306025,205.41,205.4,136.8682]
[1731246357030,20.0,205.41,205.4,136.8682]
[1731246362462,43.776884,205.41,205.4,136.8682]
[1731246363456,20.0,205.41,205.4,136.8682]
[1731246363762,4.9681,205.42,205.4,136.8682]
[1731246364664,0.1,205.44,205.4,136.8682]
[1731246364956,0.1,205.46,205.4,136.8682]
[1731246365261,0.1,205.48,205.4,136.8682]
[1731246365442,4.8666,205.49,205.4,136.8682]
[1731246365764,0.1,205.48,205.4,136.8682]
[1731246366060,4.8666,205.49,205.4,136.8682]
[1731246366438,4.8666,205.49,205.41,0.08860704]
[1731246366860,0.1,205.5,205.41,0.08860704]
[1731246367547,4.8661,205.51,205.42,21.4032]
[1731246368358,0.1,205.49,205.42,21.4032]
[1731246371149,4.8661,205.51,205.42,21.4032]
[1731246372459,0.1,205.49,205.42,21.49180704]
[1731246373760,0.1,205.55,205.45,0.08860704]
[1731246374159,0.1,205.52,205.43,0.08860704]
[1731246374741,0.1,205.5,205.43,0.08860704]
[1731246374939,0.1,205.52,205.43,0.08860704]
[1731246375143,0.1,205.5,205.43,0.08860704]
[1731246377159,0.1,205.49,205.43,0.08860704]
[1731246378051,4.866,205.51,205.43,0.08860704]
[1731246378381,0.1,205.49,205.43,0.08860704]
[1731246378567,0.1,205.51,205.43,0.08860704]
[1731246378759,4.9656,205.53,205.43,0.08860704]
[1731246379147,0.1,205.51,205.43,0.08860704]
[1731246379347,0.1,205.49,205.43,0.08860704]
[1731246380859,0.1,205.51,205.43,0.08860704]
[1731246381573,4.9659,205.51,205.43,0.08860704]
[1731246383971,0.1,205.49,205.43,0.08860704]
[1731246384372,4.9659,205.51,205.43,0.08860704]
[1731246385264,0.1,205.49,205.43,0.08860704]
[1731246386361,0.1,205.51,205.43,0.08860704]
[1731246386758,4.8657,205.52,205.43,0.08860704]
[1731246387147,0.1,205.51,205.43,0.08860704]
[1731246389550,0.1,205.51,205.42,20.49180704]
[1731246390854,0.1,205.49,205.42,20.49180704]
[1731246391074,0.2,205.46,205.42,20.49180704]
[1731246391460,0.2,205.46,205.42,15.3327]
[1731246391668,0.1,205.43,205.4,136.8682]
[1731246392656,0.1,205.42,205.4,136.8682]
[1731246392858,4.8683,205.41,205.4,136.8682]
[1731246393173,24.9683,205.41,205.4,136.8682]
[1731246393852,0.1,205.5,205.4,136.8682]
[1731246393853,0.1,205.45,205.4,136.8682]
[1731246394358,20.0,205.45,205.4,136.8682]
[1731246395079,24.9671,205.46,205.4,136.8682]
[1731246396068,0.1,205.44,205.4,136.8682]
[1731246396272,0.1,205.41,205.4,136.8682]
[1731246397073,0.1,205.42,205.4,136.8682]
[1731246397375,0.2,205.42,205.4,136.8682]
[1731246397577,20.2,205.42,205.4,136.8682]
[1731246398457,24.8679,205.43,205.4,136.8682]
[1731246399575,0.1,205.41,205.4,136.8682]
[1731246400874,24.9683,205.41,205.4,136.8682]
[1731246401758,48.745184,205.41,205.4,136.8682]
[1731246402175,43.876884,205.41,205.4,136.8682]
[1731246402481,20.1,205.41,205.4,136.8682]
[1731246402688,43.876884,205.41,205.4,136.8682]
[1731246406670,20.1,205.41,205.4,136.8682]
[1731246407072,0.1,205.42,205.4,136.8682]
[1731246407286,0.1,205.44,205.4,136.8682]
[1731246407591,0.1,205.45,205.4,152.164]
[1731246407763,0.1,205.47,205.4,152.164]
[1731246408180,4.8663,205.5,205.4,152.164]
[1731246409084,4.9663,205.5,205.4,152.164]
[1731246409582,4.8663,205.5,205.4,152.164]
[1731246409789,4.9663,205.5,205.4,152.164]
[1731246409985,4.8663,205.5,205.4,152.164]
[1731246410387,24.9663,205.5,205.4,152.164]
[1731246410889,4.9665,205.49,205.4,152.164]
[1731246411190,24.9659,205.51,205.4,152.164]
[1731246411385,4.9659,205.51,205.41,6.3165]
[1731246411580,24.9659,205.51,205.41,6.3165]
[1731246412174,0.1,205.5,205.41,6.3165]
[1731246412878,0.2,205.49,205.41,6.3165]
[1731246413597,0.2,205.45,205.41,6.3165]
[1731246414088,0.2,205.47,205.41,6.3165]
[1731246414293,20.2,205.49,205.41,6.3165]
[1731246414472,0.2,205.49,205.41,6.3165]
[1731246414994,0.1,205.47,205.41,6.3165]
[1731246415298,0.1,205.48,205.41,6.3165]
[1731246416967,24.9664,205.49,205.41,6.3165]
[1731246417187,0.1,205.47,205.41,6.3165]
[1731246417893,24.9664,205.49,205.41,6.3165]
[1731246418099,0.1,205.46,205.41,6.3165]
[1731246418394,0.2,205.44,205.41,6.3165]
[1731246419478,0.1,205.42,205.4,152.164]
[1731246419678,0.1,205.41,205.4,152.164]
[1731246420200,4.9683,205.41,205.4,136.8682]
[1731246420398,24.9683,205.41,205.4,136.8682]
[1731246420902,4.8683,205.41,205.4,136.8682]
[1731246421083,0.1,205.43,205.4,136.8682]
[1731246421281,0.1,205.44,205.4,136.8682]
[1731246422389,0.1,205.45,205.4,136.8682]
[1731246422595,0.1,205.44,205.4,136.8682]